bitfinex-derivatives/quotes_BNBF0:USTF0_20250507
["timestamp","ask_amount","ask_price","bid_price","bid_amount"]
[1746633842944,1.25811664,600.73,600.03,0.33331666]
[1746633843141,1.25811664,600.72,600.03,0.33331666]
[1746633843341,2.26505774,600.71,600.03,0.33331666]
[1746633843645,1.25811664,600.7,600.03,0.33331666]
[1746633843845,1.25811664,600.69,600.03,0.33331666]
[1746633844146,2.26505774,600.68,600.03,0.33331666]
[1746633844345,1.25811664,600.67,600.03,0.33331666]
[1746633844546,2.26505774,600.66,600.03,0.33331666]
[1746633844743,1.25925153,600.65,600.03,0.33331666]
[1746633844942,2.26619263,600.64,600.03,0.33331666]
[1746633845145,0.28978508,601.04,600.03,0.33331666]
[1746633845146,2.26619263,600.63,600.03,0.33331666]
[1746633845347,1.25925153,600.62,600.03,0.33331666]
[1746633845545,1.25925153,600.61,600.03,0.87731666]
[1746633845741,1.25925153,600.6,600.03,0.87731666]
[1746633845945,1.25925153,600.59,600.03,0.87731666]
[1746633846147,1.25925153,600.58,600.03,0.87731666]
[1746633846344,1.25925153,600.57,600.03,0.87731666]
[1746633846647,1.25916582,600.56,600.03,0.87731666]
[1746633846846,2.26610692,600.55,600.03,0.87731666]
[1746633847141,1.25916582,600.54,600.03,0.87731666]
[1746633847447,2.26610692,600.53,600.03,0.87731666]
[1746633847646,1.25916582,600.52,600.03,0.87731666]
[1746633847843,1.25916582,600.51,600.03,0.87731666]
[1746633848147,1.25916582,600.5,600.03,0.87731666]
[1746633848447,1.2592231,600.49,600.03,0.87731666]
[1746633848647,1.0069411,600.49,600.03,0.87731666]
[1746633849050,1.0069411,600.48,600.03,0.87731666]
[1746633849448,1.0069411,600.47,600.03,0.87731666]
[1746633849949,1.0069411,600.46,600.03,0.87731666]
[1746633850349,1.0069411,600.45,600.03,0.87731666]
[1746633850851,1.0069411,600.44,600.03,0.87731666]
[1746633851051,1.0069411,600.43,600.03,0.87731666]
[1746633851351,1.0069411,600.42,600.03,0.87731666]
[1746633851750,0.28980076,601.04,600.03,0.87731666]
[1746633852046,1.26053348,601.03,600.03,0.87731666]
[1746633852254,1.26053348,601.02,600.03,0.87731666]
[1746633852452,1.26053348,601.01,600.03,0.87731666]
[1746633852648,1.26053348,601.0,600.03,0.87731666]
[1746633852852,2.26755139,600.99,600.03,0.87731666]
[1746633853054,1.26053348,600.98,600.03,0.87731666]
[1746633853252,1.26053348,600.97,600.03,0.87731666]
[1746633853452,2.26755139,600.96,600.03,0.87731666]
[1746633853648,1.26053348,600.95,600.03,0.87731666]
[1746633853847,1.26053348,600.94,600.03,0.87731666]
[1746633854048,2.26755139,600.93,600.03,0.87731666]
[1746633854253,1.26053348,600.92,600.03,0.87731666]
[1746633854455,1.26053348,600.91,600.03,0.87731666]
[1746633854754,2.26755139,600.9,600.03,0.87731666]
[1746633854952,1.26053348,600.89,600.03,0.87731666]
[1746633855150,1.26053348,600.88,600.03,0.87731666]
[1746633855451,2.26755139,600.87,600.03,0.87731666]
[1746633855655,1.26042754,600.86,600.03,0.87731666]
[1746633855849,2.26744545,600.85,600.03,0.87731666]
[1746633856049,1.26042754,600.84,600.03,0.87731666]
[1746633856255,2.26744545,600.83,600.03,0.87731666]
[1746633856555,1.26042754,600.82,600.03,0.87731666]
[1746633856750,1.26042754,600.81,600.03,0.87731666]
[1746633857054,1.26042754,600.8,600.03,0.544]
[1746633857248,2.26744545,600.79,600.03,0.544]
[1746633857450,1.26042754,600.78,600.03,0.544]
[1746633857658,2.26744545,600.77,600.03,0.544]
[1746633857952,1.26042754,600.76,600.03,0.544]
[1746633858154,1.26042754,600.75,600.03,1.215]
[1746633858355,1.26042754,600.74,600.03,1.215]
[1746633858557,2.26744545,600.73,600.03,1.215]
[1746633858753,1.26042754,600.72,600.03,1.84]
[1746633858952,2.26744545,600.71,600.03,1.84]
[1746633859256,1.26042754,600.7,600.03,1.84]
[1746633859552,2.26744545,600.69,600.03,1.84]
[1746633859759,1.26042754,600.68,600.03,1.84]
[1746633859956,1.26042754,600.67,600.03,1.84]
[1746633860252,2.26744545,600.66,600.03,1.84]
[1746633860452,1.26042754,600.65,600.03,1.84]
[1746633860756,2.26744545,600.64,600.03,1.84]
[1746633861057,1.25862499,600.63,600.03,1.84]
[1746633861358,1.25862499,600.62,600.03,1.84]
[1746633861559,1.25862499,600.61,600.03,1.84]
[1746633861758,1.25862499,600.6,600.03,1.84]
[1746633861959,2.2656429,600.59,600.03,1.84]
[1746633862160,1.25862499,600.58,600.03,1.84]
[1746633862460,1.25862499,600.57,600.03,1.84]
[1746633862659,1.25862499,600.56,600.03,1.84]
[1746633862860,2.2656429,600.55,600.03,1.84]
[1746633863059,1.25862499,600.54,600.03,1.84]
[1746633863355,2.2656429,600.53,600.03,1.84]
[1746633863560,1.25862499,600.52,600.03,1.84]
[1746633863761,1.25862499,600.51,600.03,1.84]
[1746633863963,2.2656429,600.5,600.03,1.84]
[1746633864261,1.25862499,600.49,600.03,1.84]
[1746633864455,1.00701791,600.48,600.03,1.169]
[1746633864657,1.25862499,600.47,600.03,0.625]
[1746633864961,1.00701791,600.46,600.03,0.625]
[1746633865157,2.2656429,600.45,600.03,0.625]
[1746633865357,1.00701791,600.44,599.93,0.28984059]
[1746633865559,1.00701791,600.44,598.74,1.05712948]
[1746633865858,1.00701791,600.43,598.76,0.33402364]
[1746633866064,1.00701791,600.43,599.93,0.29001329]
[1746633866362,1.00701791,600.42,598.83,1.05712948]
[1746633866865,1.00701791,600.41,598.83,1.05712948]
[1746633867465,1.00701791,600.4,598.84,0.29000604]
[1746633867860,1.00701791,600.39,598.84,0.29000604]
[1746633868665,1.00701791,600.39,598.81,1.05712948]
[1746633868964,1.00701791,600.38,598.84,0.29001088]
[1746633869465,1.00701791,600.37,598.84,0.29001088]
[1746633869669,1.00701791,600.84,598.84,0.29001088]
[1746633869867,1.00701791,600.84,598.84,1.34714036]
[1746633869868,1.25972046,600.83,598.84,1.34714036]
[1746633870166,2.26674431,600.82,598.84,1.34714036]
[1746633870365,1.2597264,600.81,598.84,1.34714036]
[1746633870566,1.2597264,600.8,598.84,1.34714036]
[1746633870767,1.2597264,600.79,598.84,1.34714036]
[1746633870967,2.26674431,600.78,598.84,1.34714036]
[1746633871167,1.2597264,600.77,598.84,1.34714036]
[1746633871370,2.26674431,600.76,598.84,1.34714036]
[1746633871571,1.2597264,600.75,598.84,1.34714036]
[1746633871766,1.2597264,600.74,598.84,1.34714036]
[1746633871973,1.2597264,600.73,598.88,1.05712948]
[1746633872172,1.2597264,600.72,598.88,1.05712948]
[1746633872470,2.26674431,600.71,598.88,1.05712948]
[1746633872671,1.2597264,600.7,598.88,1.05712948]
[1746633872872,1.2597264,600.69,598.88,1.05712948]
[1746633873066,2.26674431,600.68,598.88,1.05712948]
[1746633873371,1.2597264,600.67,598.84,0.29001088]
[1746633873566,2.26674431,600.66,598.84,0.29001088]
[1746633873773,1.26140695,600.65,598.84,0.29001088]
[1746633873971,2.26842486,600.64,598.84,0.29001088]
[1746633874174,1.26140695,600.63,598.84,0.29001088]
[1746633874371,1.26140695,600.62,598.84,0.29001088]
[1746633874574,1.26140695,600.61,598.83,1.05712948]
[1746633874775,1.26140695,600.6,598.84,0.29001208]
[1746633874972,2.26842486,600.59,598.84,0.29001208]
[1746633875275,1.26140695,600.58,598.84,0.29001208]
[1746633875472,1.26140695,600.57,598.84,0.29001208]
[1746633875678,1.26140695,600.56,598.84,0.29001208]
[1746633875978,2.26842486,600.55,598.84,0.29001208]
[1746633876178,1.26140695,600.54,598.84,0.29001208]
[1746633876376,1.00701791,600.55,598.84,0.29001208]
[1746633876377,2.26842486,600.53,598.84,0.29001208]
[1746633876575,2.26842486,600.52,598.84,0.29001208]
[1746633876779,1.26140695,600.51,598.84,0.29001208]
[1746633876977,1.26140695,600.5,598.84,0.29001208]
[1746633877174,1.26140695,600.49,598.84,0.29001208]
[1746633877480,1.26140695,600.49,598.79,0.539]
[1746633877481,1.26140695,600.48,598.79,0.539]
[1746633877675,2.26842486,600.47,598.79,0.539]
[1746633877879,2.26842486,600.46,598.84,0.29004472]
[1746633878078,1.26140695,600.45,598.84,0.29004472]
[1746633878481,1.00701791,600.44,598.84,0.29004472]
[1746633878680,1.26140695,600.43,598.84,0.29004472]
[1746633879281,1.00701791,600.42,598.84,0.29004472]
[1746633879582,2.26842486,600.41,598.84,0.29004472]
[1746633879781,1.26140695,600.4,598.84,0.29004472]
[1746633879982,1.00701791,600.39,598.84,0.29004472]
[1746633880182,1.26140695,600.38,598.84,0.29004472]
[1746633880482,1.00701791,600.37,598.79,0.539]
[1746633880878,1.00701791,600.37,598.84,0.29004592]
[1746633881077,1.00701791,600.36,598.84,0.29004592]
[1746633881581,1.00701791,600.35,598.84,0.29004592]
[1746633881983,1.00701791,600.34,598.84,0.29004592]
[1746633882183,1.00701791,600.34,598.86,0.33396787]
[1746633882382,1.00701791,600.71,598.86,0.33396787]
[1746633882880,2.26553876,600.7,598.86,0.33396787]
[1746633883079,1.25852085,600.69,598.86,0.33396787]
[1746633883285,1.25852085,600.68,598.86,0.33396787]
[1746633883481,2.26553876,600.67,598.86,0.33396787]
[1746633883786,1.25852085,600.66,598.86,0.33396787]
[1746633883980,2.26553876,600.65,598.86,0.33396787]
[1746633884184,1.25852085,600.64,598.86,0.33396787]
[1746633884384,1.00701791,600.65,598.86,0.33396787]
[1746633884584,1.25779066,600.64,598.86,0.33396787]
[1746633884786,1.25779066,600.63,598.86,0.33396787]
[1746633884984,2.26480857,600.62,598.86,0.33396787]
[1746633885181,2.26480857,600.61,598.86,0.33396787]
[1746633885385,1.25779066,600.6,598.87,0.773]
[1746633885584,1.25779066,600.59,598.89,0.33395114]
[1746633885882,1.25779066,600.58,598.89,0.33395114]
[1746633886082,2.26480857,600.57,598.89,0.33395114]
[1746633886378,1.25779066,600.56,598.89,0.33395114]
[1746633886580,1.25779066,600.55,598.89,0.33395114]
[1746633886784,1.25779066,600.54,598.89,0.33395114]
[1746633887086,2.26480857,600.53,598.89,0.33395114]
[1746633887286,1.25779066,600.52,598.89,0.33395114]
[1746633887488,1.25779066,600.51,598.89,0.33395114]
[1746633887685,1.25779066,600.5,598.89,0.33395114]
[1746633887884,0.29004592,600.72,598.89,0.33395114]
[1746633887885,2.26480857,600.49,598.89,0.33395114]
[1746633888090,1.25659488,600.48,598.89,0.33395114]
[1746633888389,1.00701791,600.47,598.89,0.33395114]
[1746633888590,1.25659488,600.46,598.89,0.33395114]
[1746633888883,1.00701791,600.45,598.89,0.33395114]
[1746633889089,1.25659488,600.44,598.89,0.33395114]
[1746633889485,1.00701791,600.43,598.89,0.33395114]
[1746633889691,1.25659488,600.42,598.89,0.33395114]
[1746633890185,1.00701791,600.41,598.89,0.33395114]
[1746633890386,1.00701791,600.4,598.89,0.33395114]
[1746633891086,1.00701791,600.39,598.89,0.33395114]
[1746633891690,1.00701791,600.74,598.89,0.33395114]
[1746633891892,1.25640431,600.73,598.89,0.33395114]
[1746633892187,1.25640431,600.72,598.89,0.33395114]
[1746633892387,1.25640431,600.71,598.89,0.33395114]
[1746633892588,2.26342222,600.7,598.89,0.33395114]
[1746633892889,1.25640431,600.69,598.9,0.76]
[1746633893189,1.25640431,600.68,598.92,0.33393441]
[1746633893388,1.25640431,600.67,598.92,0.33393441]
[1746633893591,2.26230864,600.66,598.92,0.33393441]
[1746633893784,1.25653357,600.65,598.92,0.33393441]
[1746633893989,1.25653357,600.64,598.92,0.33393441]
[1746633894192,2.26230864,600.63,598.99,1.05712948]
[1746633894391,1.25653357,600.62,599.01,0.33388424]
[1746633894587,1.25653357,600.61,599.01,0.33388424]
[1746633894789,2.26230864,600.6,599.01,0.33388424]
[1746633895089,2.26230864,600.59,599.01,0.33388424]
[1746633895290,1.25624066,600.58,599.01,0.33388424]
[1746633895490,2.26201573,600.57,599.01,0.33388424]
[1746633895691,1.25624066,600.56,599.01,0.33388424]
[1746633895891,1.25624066,600.55,599.01,0.33388424]
[1746633896087,2.26201573,600.54,599.02,0.621]
[1746633896392,1.25624066,600.53,599.04,0.33386752]
[1746633896594,2.26201573,600.52,599.04,0.33386752]
[1746633896792,1.25624066,600.51,599.04,0.33386752]
[1746633897195,1.25624066,600.5,599.04,0.33386752]
[1746633897395,1.25624066,600.49,599.04,0.33386752]
[1746633897894,1.00577507,600.48,599.04,0.33386752]
[1746633898095,1.25624066,600.47,599.04,0.33386752]
[1746633898495,1.00577507,600.46,599.04,0.33386752]
[1746633898694,1.25624066,600.45,599.04,0.33386752]
[1746633898895,1.00577507,600.46,599.04,0.33386752]
[1746633899092,2.26381546,600.45,599.04,0.33386752]
[1746633899304,1.25804039,600.44,599.04,0.33386752]
[1746633899591,1.25804039,600.44,599.04,1.390997]
[1746633899795,1.00577507,600.43,599.04,1.390997]
[1746633899997,1.25804039,600.42,599.04,1.390997]
[1746633900292,1.00577507,600.41,599.04,1.390997]
[1746633900498,1.25804039,600.4,599.04,1.390997]
[1746633900694,1.25836431,600.39,599.04,1.390997]
[1746633900891,2.26413938,600.38,599.04,1.390997]
[1746633901192,1.25836431,600.37,599.04,1.390997]
[1746633901398,1.25836431,600.37,599.05,1.05712948]
[1746633901595,1.00577507,600.36,599.05,1.05712948]
[1746633901794,1.25836431,600.35,599.05,1.05712948]
[1746633902000,1.00577507,600.36,599.05,1.05712948]
[1746633902196,1.25864173,600.35,599.05,1.05712948]
[1746633902502,2.2644168,600.35,599.05,1.05712948]
[1746633902699,1.00577507,600.35,599.05,1.05712948]
[1746633903297,1.00577507,600.34,599.05,1.70712948]
[1746633903497,1.00577507,600.34,599.07,0.3338508]
[1746633903800,1.00577507,600.33,599.07,0.3338508]
[1746633903996,1.00577507,600.7,599.1,1.05712948]
[1746633904196,1.56450401,600.69,599.1,1.05712948]
[1746633904394,2.26418188,600.68,599.12,0.33382294]
[1746633904696,1.56450401,600.67,599.12,0.33382294]
[1746633904905,1.25840681,600.66,599.12,0.33382294]
[1746633905202,2.26418188,600.65,599.12,0.33382294]
[1746633905500,1.25840681,600.64,599.12,0.33382294]
[1746633905800,2.26522064,600.63,599.12,0.33382294]
[1746633905995,2.26522064,600.62,599.12,0.33382294]
[1746633906195,1.25840681,600.61,599.12,0.33382294]
[1746633906405,1.25840681,600.6,599.12,0.33382294]
[1746633906600,1.25840681,600.59,599.12,0.33382294]
[1746633906799,1.25840681,600.58,599.12,0.33382294]
[1746633907001,1.25840681,600.57,599.12,0.33382294]
[1746633907201,2.26522064,600.56,599.12,0.33382294]
[1746633907402,1.25840681,600.55,599.12,0.33382294]
[1746633907599,1.25840681,600.54,599.12,0.33382294]
[1746633907801,2.26522064,600.53,599.12,0.33382294]
[1746633907996,1.25840681,600.52,599.12,0.33382294]
[1746633908202,1.25840681,600.51,599.12,0.33382294]
[1746633908403,2.26522064,600.5,599.12,0.33382294]
[1746633908600,1.25840681,600.49,599.12,0.33382294]
[1746633908800,1.25840681,600.48,599.12,0.33382294]
[1746633908997,0.28999154,600.67,599.12,0.33382294]
[1746633908998,2.26522064,600.47,599.12,0.33382294]
[1746633909197,1.25840681,600.46,599.12,0.33382294]
[1746633909405,2.26522064,600.45,599.12,0.33382294]
[1746633909601,0.28999154,600.67,599.12,0.33382294]
[1746633909602,2.26522064,600.44,599.12,0.33382294]
[1746633909803,1.25840681,600.43,599.12,0.33382294]
[1746633910005,1.25840681,600.42,599.12,0.33382294]
[1746633910204,1.25840681,600.41,599.12,0.33382294]
[1746633910405,2.26522064,600.4,599.12,0.33382294]
[1746633910599,1.25849793,600.39,599.12,0.33382294]
[1746633910801,2.26531176,600.38,599.12,0.33382294]
[1746633911002,1.25849793,600.37,599.12,0.33382294]
[1746633911205,1.25849793,600.36,599.12,0.33382294]
[1746633911504,1.25849793,600.35,599.12,0.33382294]
[1746633911807,2.26531176,600.34,599.12,0.33382294]
[1746633912008,1.25849793,600.33,599.12,0.33382294]
[1746633912206,1.00681383,600.32,599.12,0.33382294]
[1746633912505,1.25849793,600.31,599.12,0.33382294]
[1746633912907,2.2656962,600.3,599.12,0.33382294]
[1746633913101,1.25888237,600.29,599.12,0.33382294]
[1746633913607,1.00681383,600.28,599.12,0.33382294]
[1746633913802,2.2656962,600.27,599.12,0.33382294]
[1746633914001,1.25888237,600.26,599.12,0.33382294]
[1746633914508,1.00681383,600.25,599.12,0.33382294]
[1746633914705,1.26020702,600.24,599.12,0.33382294]
[1746633915203,1.00681383,600.23,599.12,0.33382294]
[1746633915508,2.26746922,600.22,599.12,0.33382294]
[1746633915820,1.00681383,600.21,599.12,0.33382294]
[1746633916108,1.00681383,600.2,599.12,0.33382294]
[1746633916709,1.00681383,600.19,599.12,0.33382294]
[1746633917205,1.00681383,600.18,599.12,0.33382294]
[1746633917411,1.00681383,600.17,599.12,0.33382294]
[1746633917712,1.00681383,600.16,599.12,0.33382294]
[1746633917910,1.00681383,600.15,599.12,0.33382294]
[1746633918312,1.00681383,600.14,599.12,0.33382294]
[1746633918912,1.00681383,600.13,599.12,0.33382294]
[1746633919113,1.00681383,600.12,599.12,0.33382294]
[1746633919710,1.00681383,600.11,599.12,0.33382294]
[1746633920309,0.29004834,600.65,599.12,0.33382294]
[1746633920513,1.26078312,600.64,599.12,0.33382294]
[1746633920714,1.26078312,600.63,599.12,0.33382294]
[1746633920916,2.26946697,600.62,599.12,0.33382294]
[1746633921115,1.26078312,600.61,599.12,0.33382294]
[1746633921314,1.26078312,600.6,599.12,0.33382294]
[1746633921515,1.26078312,600.59,599.12,0.33382294]
[1746633921715,1.26078312,600.58,599.12,0.33382294]
[1746633921919,1.26078312,600.57,599.12,0.33382294]
[1746633922120,1.26078312,600.56,599.12,0.33382294]
[1746633922416,2.26946697,600.55,599.12,0.33382294]
[1746633922621,2.26946697,600.54,599.12,0.33382294]
[1746633922822,1.26078312,600.53,599.12,0.33382294]
[1746633923119,0.29001088,600.62,599.12,0.33382294]
[1746633923120,2.26946697,600.52,599.12,0.33382294]
[1746633923319,1.26078312,600.51,599.12,0.33382294]
[1746633923523,1.26078312,600.5,599.12,0.33382294]
[1746633923722,1.26078312,600.49,599.12,0.33382294]
[1746633924021,1.26096829,600.48,599.12,0.33382294]
[1746633924222,1.26096829,600.47,599.12,0.33382294]
[1746633924420,1.00868385,600.49,599.12,0.33382294]
[1746633924421,2.26965214,600.46,599.12,0.33382294]
[1746633924618,1.26096829,600.45,599.12,0.33382294]
[1746633924923,1.26096829,600.44,599.12,0.33382294]
[1746633925120,1.26096829,600.43,599.13,0.848]
[1746633925322,1.26096829,600.42,599.13,0.848]
[1746633925522,2.26965214,600.41,599.13,0.848]
[1746633925723,1.26096829,600.4,599.13,0.848]
[1746633925920,2.26965214,600.39,599.15,0.33380622]
[1746633926116,1.26096829,600.38,599.15,0.33380622]
[1746633926323,1.26096829,600.37,599.15,0.33380622]
[1746633926523,2.26965214,600.36,599.15,0.33380622]
[1746633926722,1.26096829,600.35,599.15,0.33380622]
[1746633926924,1.26096829,600.34,599.15,0.33380622]
[1746633927121,1.26096829,600.33,599.15,0.33380622]
[1746633927426,1.26249414,600.32,599.15,0.33380622]
[1746633927626,1.26249414,600.31,599.15,0.33380622]
[1746633927926,2.27117799,600.3,599.15,0.33380622]
[1746633928126,1.26249414,600.29,599.15,0.33380622]
[1746633928326,1.00868385,600.3,599.15,0.33380622]
[1746633928327,1.26249414,600.28,599.15,0.33380622]
[1746633928529,1.26249414,600.27,599.15,0.33380622]
[1746633928829,1.26249414,600.26,599.15,0.33380622]
[1746633929028,1.26249414,600.25,599.15,0.33380622]
[1746633929228,1.26133802,600.24,599.15,0.33380622]
[1746633929428,1.26133802,600.23,599.15,0.33380622]
[1746633929632,2.27002187,600.22,599.15,0.33380622]
[1746633929826,1.26133802,600.21,599.15,0.33380622]
[1746633930025,1.00868385,600.22,599.15,0.33380622]
[1746633930026,1.26133802,600.2,599.15,0.33380622]
[1746633930329,2.27002187,600.19,599.15,1.18180622]
[1746633930527,1.26133802,600.18,599.15,1.18180622]
[1746633930730,2.27002187,600.17,599.15,1.18180622]
[1746633930933,1.26202778,600.16,599.15,1.18180622]
[1746633931130,1.00868385,600.15,599.15,1.18180622]
[1746633931326,1.00868385,600.14,599.15,1.18180622]
[1746633931730,1.00868385,600.13,599.15,1.18180622]
[1746633931931,1.00868385,600.12,599.15,1.18180622]
[1746633932332,1.00868385,600.11,599.15,1.18180622]
[1746633932730,1.00868385,600.1,599.15,1.18180622]
[1746633932932,1.00868385,600.09,599.15,1.18180622]
[1746633933128,1.00868385,600.08,599.15,1.18180622]
[1746633933536,1.00868385,600.07,599.15,1.18180622]
[1746633933929,1.00868385,600.06,599.15,1.18180622]
[1746633934134,1.00868385,600.05,599.15,1.18180622]
[1746633934434,1.00868385,600.04,599.15,1.18180622]
[1746633934633,1.03145587,600.03,599.15,1.18180622]
[1746633935434,1.03145587,600.02,599.15,1.18180622]
[1746633935834,0.2900834,600.56,599.15,1.18180622]
[1746633935835,1.03145587,600.01,599.15,1.18180622]
[1746633936431,0.2900834,600.56,599.15,1.18180622]
[1746633936635,1.2640039,600.55,599.15,1.18180622]
[1746633936832,2.2950061,600.54,599.15,1.18180622]
[1746633937033,1.2640039,600.53,599.15,1.18180622]
[1746633937234,1.2640039,600.52,599.15,1.18180622]
[1746633937436,1.2640039,600.51,599.15,1.18180622]
[1746633937735,1.2640039,600.5,599.15,1.18180622]
[1746633937933,2.2950061,600.49,599.15,1.18180622]
[1746633938135,1.0310022,600.49,599.15,1.18180622]
[1746633938431,0.69406628,601.93,599.15,1.18180622]
[1746633938635,0.29002054,600.59,599.15,1.18180622]
[1746633938837,0.30614724,601.3,599.15,1.18180622]
[1746633939131,2.29269054,601.29,599.15,1.18180622]
[1746633939332,1.56933095,601.28,599.15,1.18180622]
[1746633939635,2.59883778,601.27,599.15,1.18180622]
[1746633939836,2.29269054,601.26,599.15,1.18180622]
[1746633940135,0.30614724,601.25,599.15,2.07980622]
[1746633940335,1.25983286,601.24,599.15,2.07980622]
[1746633940530,2.28933969,601.23,599.15,2.07980622]
[1746633940732,0.33270673,601.13,599.15,2.07980622]
[1746633940931,2.59548693,601.12,599.15,2.07980622]
[1746633941129,1.25983286,601.11,599.15,2.07980622]
[1746633941331,0.33272887,601.09,599.15,2.07980622]
[1746633941635,1.5659801,601.08,599.15,2.07980622]
[1746633941836,2.28933969,601.07,599.15,2.07980622]
[1746633942036,1.25983286,601.06,599.15,2.07980622]
[1746633942233,0.33275655,601.04,599.15,2.07980622]
[1746633942438,1.25983286,601.03,599.15,2.07980622]
[1746633942736,1.25983286,601.02,599.15,2.07980622]
[1746633943033,0.3327787,601.0,599.15,2.07980622]
[1746633943338,2.28933969,600.99,599.15,2.07980622]
[1746633943533,0.33279531,600.97,599.15,2.07980622]
[1746633943735,2.59548693,600.96,599.15,2.07980622]
[1746633943932,2.2901834,600.95,599.15,2.07980622]
[1746633944138,2.62299532,600.94,599.15,2.07980622]
[1746633944439,0.332823,600.92,599.15,2.07980622]
[1746633944839,0.30614724,600.91,599.15,2.07980622]
[1746633945039,0.33283962,600.89,599.15,2.07980622]
[1746633945339,2.59632381,600.88,599.15,2.07980622]
[1746633945539,0.33285623,600.86,599.15,2.07980622]
[1746633945740,1.26058313,600.85,599.15,2.07980622]
[1746633945939,0.33287285,600.83,599.15,2.07980622]
[1746633946139,1.26058313,600.82,599.15,2.07980622]
[1746633946340,0.33288948,600.8,599.15,2.07980622]
[1746633946536,1.56674987,600.79,599.15,2.07980622]
[1746633946739,0.3329061,600.77,599.15,2.07980622]
[1746633946939,1.26057845,600.76,599.15,2.07980622]
[1746633947140,1.26057845,600.75,599.15,2.07980622]
[1746633947339,2.29009514,600.74,599.15,2.07980622]
[1746633947540,1.26057845,600.73,599.15,2.07980622]
[1746633947741,1.59351226,600.72,599.15,2.07980622]
[1746633947936,2.29009514,600.71,599.15,2.07980622]
[1746633948136,1.26057845,600.7,599.15,2.07980622]
[1746633948336,2.29009514,600.69,599.15,2.07980622]
[1746633948541,1.59353443,600.68,599.15,2.07980622]
[1746633948742,1.59353997,600.67,599.15,2.07980622]
[1746633949044,2.29009514,600.66,599.15,2.07980622]
[1746633949243,1.59355106,600.65,599.15,2.07980622]
[1746633949443,1.5935566,600.64,599.15,2.07980622]
[1746633949636,1.59356215,600.63,599.15,2.07980622]
[1746633949842,1.59356769,600.62,599.15,2.07980622]
[1746633950040,1.59357323,600.61,599.15,2.07980622]
[1746633950240,1.59357878,600.6,599.15,2.07980622]
[1746633950443,1.59358432,600.59,599.15,2.07980622]
[1746633950644,2.28984254,600.58,599.15,2.07980622]
[1746633950843,1.26057845,600.57,599.15,2.07980622]
[1746633951038,1.02926409,600.58,599.15,2.07980622]
[1746633951039,1.26057845,600.56,599.15,2.07980622]
[1746633951345,2.28933406,600.55,599.15,2.07980622]
[1746633951540,1.26006997,600.54,599.15,2.07980622]
[1746633951740,2.28933406,600.53,599.15,2.07980622]
[1746633951939,1.26006997,600.52,599.15,2.07980622]
[1746633952144,1.26006997,600.51,599.15,2.07980622]
[1746633952344,2.28933406,600.5,599.15,2.07980622]
[1746633952542,1.26006997,600.49,599.15,2.07980622]
[1746633952842,2.28933406,600.48,599.15,2.07980622]
[1746633953044,1.26006997,600.47,599.15,2.07980622]
[1746633953339,1.26006997,600.46,599.15,2.07980622]
[1746633953544,2.28933406,600.45,599.15,2.07980622]
[1746633953742,1.26006997,600.44,599.15,2.07980622]
[1746633954039,2.28933406,600.43,599.15,2.07980622]
[1746633954242,1.26006997,600.42,599.15,2.07980622]
[1746633954538,2.28933406,600.41,599.15,2.07980622]
[1746633954735,1.26006997,600.4,599.15,2.07980622]
[1746633954940,1.25996637,600.39,599.15,2.07980622]
[1746633955140,1.25996637,600.38,599.15,2.07980622]
[1746633955338,1.25996637,600.37,599.15,2.07980622]
[1746633955540,1.25996637,600.36,599.15,2.07980622]
[1746633955845,2.28923046,600.35,599.15,2.75980622]
[1746633956039,2.28923046,600.34,599.15,2.75980622]
[1746633956240,1.25996637,600.33,599.15,2.75980622]
[1746633956445,1.25996637,600.32,599.15,2.75980622]
[1746633956746,2.28923046,600.31,599.15,2.75980622]
[1746633956947,1.25996637,600.3,599.15,2.75980622]
[1746633957147,1.25996637,600.29,599.15,2.75980622]
[1746633957350,2.28923046,600.28,599.15,2.75980622]
[1746633957547,1.25996637,600.27,599.15,2.75980622]
[1746633957749,2.28923046,600.26,599.15,2.75980622]
[1746633957949,1.25996637,600.25,599.15,2.75980622]
[1746633958146,1.25996637,600.24,599.15,2.75980622]
[1746633958349,1.25996637,600.23,599.15,2.75980622]
[1746633958550,1.25996637,600.22,599.15,2.75980622]
[1746633958752,1.25996637,600.21,599.15,2.75980622]
[1746633958951,1.25996637,600.2,599.15,2.75980622]
[1746633959150,1.25996637,600.19,599.15,2.75980622]
[1746633959350,1.25996637,600.18,599.15,2.75980622]
[1746633959552,1.25996637,600.17,599.15,2.75980622]
[1746633959852,1.02926409,600.16,599.15,2.75980622]
[1746633960254,1.02926409,600.15,599.15,2.75980622]
[1746633960553,1.02926409,600.14,599.15,2.75980622]
[1746633960753,1.02926409,600.13,599.15,2.75980622]
[1746633961153,1.02926409,600.12,599.15,2.75980622]
[1746633961549,1.02926409,600.11,599.15,2.75980622]
[1746633962150,1.02926409,600.1,599.15,2.75980622]
[1746633962856,1.02926409,600.09,599.15,2.75980622]
[1746633963155,1.02926409,600.08,599.15,2.75980622]
[1746633963652,1.02926409,600.07,599.15,2.75980622]
[1746633963957,1.02926409,600.06,599.15,2.75980622]
[1746633964756,0.33300587,600.59,599.15,2.75980622]
[1746633964757,1.02926409,600.05,599.15,2.75980622]